fUST/lending_fUST_20260113
["ID","MTS","AMOUNT","RATE_DAILY","PERIOD"]
[401591140,1768311039740,-1666.06,0.00017396,3]
[401591141,1768311039750,-833.02,0.00017396,3]
[401591142,1768311039759,-416.52,0.00017396,3]
[401591143,1768311039768,-420.0,0.00017423,2]
[401591144,1768311039778,-400.0,0.00017534,2]
[401591145,1768311039787,-248.93329018,0.00017715,2]
[401591146,1768311039796,-63761.73730551,0.00018,2]
[401591147,1768311039806,-41716.32353624,0.00018,5]
[401591148,1768311039816,-26461.05205915,0.00018082,3]
[401591149,1768311039826,-400.0,0.0001863,2]
[401591150,1768311039835,-1747.58336134,0.0001882,2]
[401591151,1768311039844,-13230.52,0.00018876,3]
[401591152,1768311039854,-587.0,0.00019051,2]
[401591153,1768311039865,-500.0,0.0001908,2]
[401591154,1768311039874,-336933.86178969,0.00019176,2]
[401591155,1768311039884,-728.0,0.0001918,2]
[401591156,1768311039894,-167.82,0.000192,2]
[401591157,1768311039904,-53859.6231369,0.00019244,8]
[401591158,1768311039913,-157.98,0.000193,2]
[401591159,1768311039924,-161.93,0.000193,2]
[401591160,1768311039933,-1334.55,0.000193,2]
[401591162,1768311039946,-7196.97,0.000193,2]
[401591163,1768311039956,-728.0,0.0001931,2]
[401591165,1768311039965,-728.0,0.0001963,2]
[401591166,1768311039974,-13230.52,0.000197,3]
[401591167,1768311039985,-286.90616495,0.00019715,2]
[401591168,1768311039994,-168.0,0.00019759,2]
[401591169,1768311040004,-2147.0,0.00019918,2]
[401591170,1768311040014,-1367.0,0.00019918,2]
[401591171,1768311040023,-629.0,0.00019918,2]
[401591172,1768311040034,-715.0,0.00019918,2]
[401591173,1768311040043,-197.738,0.00019918,2]
[401591175,1768311040056,-417.0,0.00019918,2]
[401591177,1768311040066,-14231.01306508,0.0002,2]
[401591179,1768311040076,-2000.0,0.0002,7]
[401591181,1768311040086,-728.0,0.000204,2]
[401591183,1768311040095,-160.0,0.000204,2]
[401591185,1768311040104,-168.0,0.00020401,2]
[401591187,1768311040117,-728.0,0.00020418,2]
[401591189,1768311040128,-728.0,0.0002043,2]
[401591191,1768311040138,-728.0,0.00020545,2]
[401591193,1768311040148,-168.0,0.00020661,2]
[401591195,1768311040157,-168.0,0.00020688,2]
[401591196,1768311040167,-728.0,0.00020732,2]
[401591198,1768311040176,-728.0,0.0002075,2]
[401591199,1768311040186,-823.0,0.0002083,2]
[401591200,1768311040196,-160.0,0.00020865,2]
[401591201,1768311040205,-728.0,0.00020865,2]
[401591203,1768311040215,-259.17537596,0.00021006,2]
[401591204,1768311040225,-728.0,0.00021024,2]
[401591206,1768311040234,-728.0,0.0002104,2]
[401591208,1768311040244,-168.0,0.00021336,2]
[401591210,1768311040253,-728.0,0.0002136,2]
[401591211,1768311040263,-728.0,0.00021517,2]
[401591212,1768311040273,-168.0,0.00021564,2]
[401591213,1768311040282,-728.0,0.0002168,2]
[401591214,1768311040292,-1747.58336134,0.00021706,2]
[401591215,1768311040302,-324.87903972,0.00021715,2]
[401591216,1768311040312,-728.0,0.00021811,2]
[401591217,1768311040321,-728.0,0.00021837,2]
[401591218,1768311040332,-9677.34,0.0002208,2]
[401591219,1768311040342,-159.63,0.000221,7]
[401591220,1768311040352,-728.0,0.00022157,2]
[401591221,1768311040362,-884.892113,0.00022547,2]
[401591222,1768311040374,-1043.0,0.00022776,2]
[401591223,1768311040384,-151.0,0.00022824,2]
[401591224,1768311040393,-2147.0,0.00022918,2]
[401591225,1768311040403,-1367.0,0.00022918,2]
[401591226,1768311040413,-629.0,0.00022918,2]
[401591227,1768311040423,-715.0,0.00022918,2]
[401591228,1768311040434,-178.0,0.00022918,2]
[401591229,1768311040444,-417.0,0.00022918,2]
[401591230,1768311040454,-634.94507728,0.00022959,2]
[401591231,1768311040463,-2537.24052882,0.00022959,2]
[401591232,1768311040472,-728.0,0.0002329,3]
[401591233,1768311040483,-362.8519145,0.00023715,2]
[401591234,1768311040492,-778.0,0.000238,2]
[401591235,1768311040501,-728.0,0.00023892,3]
[401591236,1768311040511,-151.0,0.00024421,2]
[401591237,1768311040520,-728.0,0.00024532,3]
[401591238,1768311040530,-1747.58336134,0.00024591,2]
[401591239,1768311040540,-26461.04,0.000246,3]
[401591240,1768311040550,-311.85701,0.00024769,2]
[401591241,1768311040560,-461.67526834,0.00024769,2]
[401591242,1768311040571,-2230.315306,0.00024769,2]
[401591243,1768311040582,-168.3888056,0.00024769,2]
[401591244,1768311040592,-1222.19113968,0.00024769,2]
[401591245,1768311040603,-151.0,0.00024769,2]
[401591246,1768311040616,-151.0,0.00024769,2]
[401591247,1768311040626,-168.3888056,0.00024769,2]
[401591248,1768311040636,-151.0,0.00024769,2]
[401591249,1768311040647,-174.61919141,0.00024769,2]
[401591250,1768311040657,-151.0,0.00024769,2]
[401591251,1768311040669,-181.08010149,0.00024769,2]
[401591252,1768311040679,-151.0,0.00024769,2]
[401591253,1768311040688,-187.78006525,0.00024769,2]
[401591254,1768311040698,-151.0,0.00024769,2]
[401591255,1768311040707,-194.72792766,0.00024769,2]
[401591256,1768311040716,-151.0,0.00024769,2]
[401591257,1768311040726,-151.0,0.00024769,2]
[401591258,1768311040736,-201.93286099,0.00024769,2]
[401591259,1768311040745,-250.0,0.00024769,2]
[401591260,1768311040758,-151.0,0.00024769,2]
[401591261,1768311040768,-380.99585983,0.00024769,2]
[401591262,1768311040778,-209.40437684,0.00024769,2]
[401591263,1768311040788,-151.0,0.00024769,2]
[401591264,1768311040797,-217.15233878,0.00024769,2]
[401591265,1768311040807,-187.96041165,0.00024769,2]
[401591266,1768311040817,-225.18697532,0.00024769,2]
[401591267,1768311040828,-233.51889341,0.00024769,2]
[401591268,1768311040837,-242.15909246,0.00024769,2]
[401591269,1768311040846,-251.11897888,0.00024769,2]
[401591270,1768311040856,-260.4103811,0.00024769,2]
[401591271,1768311040869,-270.0455652,0.00024769,2]
[401591272,1768311040878,-280.03725112,0.00024769,2]
[401591273,1768311040887,-290.39862941,0.00024769,2]
[401591274,1768311040898,-301.1433787,0.00024769,2]
[401591275,1768311040907,-2908.86576988,0.00024799,2]
[401591276,1768311040917,-1929.5960544,0.0002485,2]
[401591277,1768311040927,-83761.64892139,0.000249,2]
[401591314,1768311045226,-1418.60916911,0.000249,2]
[401591317,1768311045238,-415.86492935,0.000249,2]
[401591424,1768311046207,-1712.67355433,0.000249,2]
[401591432,1768311046268,-13531.16937591,0.000249,2]
[401591516,1768311047148,-5756.26328816,0.000249,2]
[401591544,1768311047571,-642.53793826,0.000249,2]
[401591546,1768311047583,-5418.09196027,0.000249,2]
[401591549,1768311047594,-542.41,0.000249,2]
[401591551,1768311047606,-83143.86793931,0.000249,2]
[401591553,1768311047620,-7508.04858177,0.000249,2]
[401595220,1768311442445,300.0,0.0001503,2]
[401595221,1768311444633,-3000.0,0.00036157,120]
[401595222,1768311444682,-788.7338,0.00036157,60]
[401595223,1768311444730,-3688.21709,0.00036157,60]
[401595224,1768311444777,-788.7338,0.00036157,60]
[401595225,1768311444824,-788.7338,0.00036157,60]
[401595226,1768311444873,-788.7338,0.00036157,60]
[401595227,1768311444920,-788.7338,0.00036157,60]
[401595228,1768311444969,-840.66569,0.00036157,120]
[401595229,1768311445017,-2566.23292948,0.00036157,120]
[401595230,1768311445063,-235.72630586,0.00036157,120]
[401595231,1768311445108,-3184.18222044,0.00036157,30]
[401595232,1768311445152,-518.24011958,0.00036157,30]
[401595233,1768311445197,-2912.53469305,0.00036157,35]
[401595234,1768311445241,-644.57474758,0.00036157,30]
[401595235,1768311445289,-158.58653953,0.00036157,60]
[401595236,1768311445336,-352.78226938,0.00036157,120]
[401595237,1768311445380,-272.27635058,0.00036157,30]
[401595238,1768311445424,-2388.49543776,0.00036157,120]
[401595239,1768311445468,-1904.92656966,0.00036157,90]
[401595240,1768311445514,-2206.00803362,0.00036157,120]
[401595241,1768311445558,-238.12008143,0.00036157,30]
[401595242,1768311445604,-776.27506768,0.00036157,120]
[401595243,1768311445648,-358.21457076,0.00036157,60]
[401595244,1768311445694,-788.92332107,0.00036157,60]
[401595245,1768311445741,-157.38362154,0.00036157,120]
[401595246,1768311445789,-1804.69707746,0.00036157,30]
[401595247,1768311445835,-401.16012187,0.00036157,30]
[401595248,1768311445884,-169.13707872,0.00036157,60]
[401595249,1768311445930,-1554.00624606,0.00036157,30]
[401595250,1768311445976,-326.2334115,0.00036157,120]
[401595251,1768311446021,-853.22722528,0.00036157,120]
[401595252,1768311446069,-252.12209303,0.00036157,30]
[401595253,1768311446116,-1000.0,0.00036157,30]
[401595254,1768311446161,-1567.82367313,0.00036157,120]
[401595255,1768311446206,-331.6827281,0.00036157,30]
[401595256,1768311446249,-262.16177702,0.00036157,120]
[401595257,1768311446299,-1849.44177552,0.00036157,120]
[401595258,1768311446349,-513.09788685,0.00036157,120]
[401595259,1768311446397,-384.01430768,0.00036157,30]
[401595260,1768311446450,-1615.63290833,0.00036157,120]
[401595261,1768311446502,-172.29650056,0.00036157,60]
[401595262,1768311446557,-167.98601591,0.00036157,31]
[401595263,1768311446612,-154.26366429,0.00036157,30]
[401595264,1768311446663,-632.17446022,0.00036157,30]
[401595265,1768311446711,-622.50741933,0.00036157,30]
[401595266,1768311446762,-448.34583231,0.00036157,30]
[401595267,1768311446807,-3134.53662772,0.00036157,31]
[401595268,1768311446850,-2943.70201063,0.00036157,30]
[401595269,1768311446892,-100483.7272735,0.00036157,120]
[401595270,1768311446935,-4037.0,0.00036157,120]
[401595271,1768311446977,-8231.0,0.00036157,120]
[401595272,1768311447020,-494.0,0.00036157,120]
[401595273,1768311447064,-4776.30470854,0.00036157,120]
[401595274,1768311447106,-504.0,0.00036157,120]
[401595275,1768311447148,-291.5625448,0.00036157,30]
[401595276,1768311447189,-346.03949847,0.00036157,35]
[401595277,1768311447232,-1282.64791944,0.00036157,60]
[401595278,1768311447275,-897.5954121,0.00036157,30]
[401595279,1768311447319,-336.0,0.00036157,30]
[401595280,1768311447364,-1612.77392936,0.00036157,120]
[401595281,1768311447411,-2688.92462698,0.00036157,31]
[401595282,1768311447455,-1766.973,0.00036157,31]
[401595283,1768311447501,-168.94682325,0.00036157,120]
[401595284,1768311447546,-8190.0,0.00036157,30]
[401595285,1768311447591,-50000.0,0.00036157,120]
[401595286,1768311447636,-160.17544545,0.00036157,120]
[401595287,1768311447680,-201222.91757798,0.00036157,120]
[401595288,1768311447725,-66092.3,0.00036157,120]
[401595289,1768311447770,-158408.2564131,0.00036157,120]
[401595290,1768311447814,-302.51834192,0.00036157,120]
[401595291,1768311447858,-5000.0,0.00036157,30]
[401595292,1768311447903,-478.95749682,0.00036157,120]
[401595293,1768311447948,-1103.0877793,0.00036157,120]
[401595294,1768311447992,-12262.08759372,0.00036157,31]
[401595295,1768311448038,-18043.9,0.00036157,120]
[401595296,1768311448086,-307100.57849931,0.00036157,31]
[401595297,1768311448132,-199999.979998,0.00036157,30]
[401595298,1768311448177,-58939.18686765,0.00036157,30]
[401595299,1768311448223,-10000.0,0.00036157,120]
[401595300,1768311448271,-10000.0,0.00036157,120]
[401595301,1768311448442,-10000.0,0.00036157,120]
[401595302,1768311448493,-10000.0,0.00036157,120]
[401595303,1768311448548,-4070.0,0.00036157,120]
[401595304,1768311448602,-2886.0,0.00036157,120]
[401595305,1768311448663,-223.4935923,0.00036157,120]
[401595306,1768311448719,-1602.20350954,0.00036157,120]
[401595307,1768311448776,-5184.09991359,0.00036157,30]
[401595308,1768311448824,-1854.70280396,0.00036157,120]
[401595309,1768311448871,-1986.21458497,0.00036157,120]
[401595310,1768311448918,-2200.6898311,0.00036157,90]
[401595311,1768311448965,-151.31155162,0.00036157,30]
[401595312,1768311449019,-1369.60034275,0.00036157,120]
[401595313,1768311449068,-153.47576744,0.00036157,61]
[401595314,1768311449117,-26024.83553147,0.00036157,30]
[401595315,1768311449167,-205.917061,0.00036157,30]
[401595316,1768311449216,-2787.33055277,0.00036157,120]
[401595317,1768311449274,-2641782.39770728,0.00036157,120]
[401595318,1768311455509,-4000000.0,0.00036157,120]
[401595319,1768311459419,-3932872.50229272,0.00036157,120]
[401595320,1768311459462,-4001.17649994,0.00036157,30]
[401595321,1768311459506,-63126.32120734,0.00036157,60]
[401595322,1768311462902,-2799333.72935379,0.00036157,60]
[401595323,1768311462948,-1025.54774801,0.00036157,60]
[401595324,1768311462993,-9000.0974108,0.00036157,60]
[401595325,1768311463034,-500.0,0.00036157,30]
[401595326,1768311463078,-69203.41207795,0.00036157,45]
[401595327,1768311463125,-400.0,0.00036157,60]
[401595328,1768311463171,-1876.6776048,0.00036157,60]
[401595329,1768311463217,-2999.999999,0.00036157,120]
[401595330,1768311463261,-11424.3310425,0.00036157,30]
[401595331,1768311463309,-11100.0,0.00036157,31]
[401595332,1768311463360,-1642.31763005,0.00036157,62]
[401595333,1768311463409,-10933.77231692,0.00036157,90]
[401595334,1768311463456,-1136.52045893,0.00036157,120]
[401595335,1768311463503,-1643.13277996,0.00036157,120]
[401595336,1768311463551,-5708.5135773,0.00036157,120]
[401595337,1768311463597,-1072071.94799999,0.00036157,30]
[401595338,1768311466615,-927928.05200001,0.00036157,30]
[401595339,1768311466667,-29304.8529312,0.00036157,30]
[401595340,1768311466717,-14524.91059392,0.00036157,30]
[401595341,1768311466764,-4084.1353065,0.00036157,120]
[401595342,1768311466809,-99999.999998,0.00036157,30]
[401595343,1768311466854,-6256.37198943,0.00036157,30]
[401595344,1768311466908,-1010536.29114551,0.00036157,30]
[401595345,1768311466956,-162.25,0.00036157,120]
[401595346,1768311467008,-169.62292943,0.00036157,120]
[401595347,1768311467056,-169.62292943,0.00036157,120]
[401595348,1768311467106,-169.62292943,0.00036157,120]
[401595349,1768311467159,-169.62292943,0.00036157,120]
[401595350,1768311467207,-169.62292943,0.00036157,120]
[401595351,1768311467257,-169.62292943,0.00036157,120]
[401595352,1768311467305,-152.33586076,0.00036157,120]
[401595353,1768311467351,-6000.0,0.00036157,30]
[401595354,1768311467397,-151.0,0.00036157,31]
[401595355,1768311467445,-151.0,0.00036157,31]
[401595356,1768311467495,-151.0,0.00036157,31]
[401595357,1768311467542,-155.420915,0.00036157,31]
[401595358,1768311467597,-151.0,0.00036157,31]
[401595359,1768311467648,-151.0,0.00036157,31]
[401595360,1768311467697,-151.0,0.00036157,31]
[401595361,1768311467747,-151.0,0.00036157,31]
[401595362,1768311467797,-151.0,0.00036157,31]
[401595363,1768311467845,-151.0,0.00036157,31]
[401595364,1768311467900,-151.0,0.00036157,31]
[401595365,1768311467950,-151.0,0.00036157,31]
[401595366,1768311468004,-151.0,0.00036157,31]
[401595367,1768311468065,-301.205222,0.00036157,31]
[401595368,1768311468286,-151.0,0.00036157,31]
[401595369,1768311468345,-151.0,0.00036157,31]
[401595370,1768311468393,-151.0,0.00036157,31]
[401595371,1768311468440,-151.0,0.00036157,31]
[401595372,1768311468489,-151.0,0.00036157,31]
[401595373,1768311468534,-298.648057,0.00036157,31]
[401595374,1768311468582,-172.586988,0.00036157,31]
[401595375,1768311468630,-151.0,0.00036157,31]
[401595376,1768311468676,-151.0,0.00036157,31]
[401595377,1768311468724,-157.145531,0.00036157,31]
[401595378,1768311468773,-151.0,0.00036157,31]
[401595379,1768311468825,-151.0,0.00036157,31]
[401595380,1768311468872,-151.0,0.00036157,31]
[401595381,1768311468919,-151.0,0.00036157,31]
[401595382,1768311468964,-151.0,0.00036157,31]
[401595383,1768311469010,-151.0,0.00036157,31]
[401595384,1768311469059,-155.025966,0.00036157,31]
[401595385,1768311469108,-151.85180832,0.00036157,120]
[401595386,1768311469155,-150.1,0.00036157,40]
[401595387,1768311469204,-151.0,0.00036157,31]
[401595388,1768311469251,-151.0,0.00036157,31]
[401595389,1768311469297,-151.0,0.00036157,31]
[401595390,1768311469345,-151.0,0.00036157,31]
[401595391,1768311469392,-152.59434,0.00036157,31]
[401595392,1768311469440,-443.240171,0.00036157,31]
[401595393,1768311469490,-443.240171,0.00036157,31]
[401595394,1768311469536,-443.240171,0.00036157,31]
[401595395,1768311469581,-443.240171,0.00036157,31]
[401595396,1768311469628,-443.240171,0.00036157,31]
[401595397,1768311469675,-443.240171,0.00036157,31]
[401595398,1768311469722,-443.240171,0.00036157,31]
[401595399,1768311469766,-443.240171,0.00036157,31]
[401595400,1768311469812,-443.240171,0.00036157,31]
[401595401,1768311469857,-443.240171,0.00036157,31]
[401595402,1768311469905,-443.240171,0.00036157,31]
[401595403,1768311469951,-443.240171,0.00036157,31]
[401595404,1768311469997,-443.240171,0.00036157,31]
[401595405,1768311470043,-443.240171,0.00036157,31]
[401595406,1768311470089,-443.240171,0.00036157,31]
[401595407,1768311470134,-443.240171,0.00036157,31]
[401595408,1768311470180,-443.240171,0.00036157,31]
[401595409,1768311470227,-443.240171,0.00036157,31]
[401595410,1768311470272,-443.240171,0.00036157,31]
[401595411,1768311470318,-443.240163,0.00036157,31]
[401595412,1768311470364,-151.000007,0.00036157,31]
[401595413,1768311470407,-151.0,0.00036157,31]
[401595414,1768311470453,-151.0,0.00036157,31]
[401595415,1768311470500,-151.0,0.00036157,31]
[401595416,1768311470551,-151.0,0.00036157,31]
[401595417,1768311470597,-151.0,0.00036157,31]
[401595418,1768311470643,-151.0,0.00036157,31]
[401595419,1768311470688,-151.0,0.00036157,31]
[401595420,1768311470734,-151.0,0.00036157,31]
[401595421,1768311470781,-151.0,0.00036157,31]
[401595422,1768311470826,-204.719339,0.00036157,31]
[401595423,1768311470869,-151.0,0.00036157,31]
[401595424,1768311470912,-151.0,0.00036157,31]
[401595425,1768311470953,-151.0,0.00036157,31]
[401595426,1768311470995,-151.0,0.00036157,31]
[401595427,1768311471040,-151.0,0.00036157,31]
[401595428,1768311471083,-151.0,0.00036157,31]
[401595429,1768311471127,-151.0,0.00036157,31]
[401595430,1768311471173,-151.0,0.00036157,31]
[401595431,1768311471218,-151.0,0.00036157,31]
[401595432,1768311471263,-151.0,0.00036157,31]
[401595433,1768311471309,-226.450295,0.00036157,31]
[401595434,1768311471354,-500.0,0.00036157,120]
[401595435,1768311471564,5019.09592523,0.00036157,30]
[401595436,1768311471629,470902.05748583,0.00036157,30]
[401595437,1768311472955,854.0,0.00036157,30]
[401595438,1768311474814,18803.0,0.00036157,30]
[401595439,1768311480108,339.35,9.99e-05,2]
[401595440,1768311480422,339.35,9.99e-05,2]
[401595441,1768311480707,339.35,9.99e-05,2]
[401595447,1768311604566,150.13,5e-05,2]
[401595448,1768311605079,150.13,0.000148,2]
[401595449,1768311614237,279.01,5.901e-05,2]
[401595450,1768311614640,558.03,6.437e-05,2]
[401595451,1768311615043,837.04,6.974e-05,2]
[401595452,1768311615459,1116.05,7.51e-05,2]
[401595453,1768311615882,1395.07,8.046e-05,2]
[401595454,1768311616299,1674.08,8.583e-05,2]
[401595455,1768311616709,1953.09,9.119e-05,2]
[401595456,1768311617125,569.33,9.656e-05,2]
[401595457,1768311617150,1662.78,9.656e-05,2]
[401595458,1768311617544,2511.12,0.00010192,2]
[401595459,1768311617963,2790.13,0.00010729,2]
[401595463,1768311683035,460.49338291,0.00030136,120]
[401595464,1768311691493,289.43,7.901e-05,2]
[401595465,1768311691942,434.15,8.56e-05,2]
[401595466,1768311692341,578.86,9.218e-05,2]
[401595467,1768311692735,723.58,9.876e-05,2]
[401595468,1768311693165,868.29,0.00010535,2]
[401595469,1768311693601,141.67,0.00011193,2]
[401595470,1768311693626,871.34,0.00011193,2]
[401595471,1768311694028,1157.73,0.00011852,2]
[401595472,1768311694437,1302.44,0.0001251,2]
[401595473,1768311694843,1447.16,0.00013169,2]
[401595474,1768311703558,178.898,0.00015616,2]
[401595475,1768311749784,506.94574255,0.00030136,120]
[401595476,1768311760258,568.06374325,0.00030136,120]
[401595477,1768311767058,181.03,7.502e-05,2]
[401595478,1768311767466,226.28,8.038e-05,2]
[401595479,1768311767870,271.54,8.574e-05,2]
[401595480,1768311768268,316.8,9.109e-05,2]
[401595481,1768311768727,362.05,9.645e-05,2]
[401595482,1768311769159,407.31,0.00010181,2]
[401595483,1768311769563,452.57,0.00010717,2]
[401595484,1768311870691,224.2892864,0.00030136,120]
[401595486,1768311961327,500.0,0.00030136,120]
[401595487,1768311963739,500.0,0.00013273,2]
[401595488,1768311963795,1000.0,0.00013821,2]
[401595489,1768311966668,1315.43993989,0.00014368,2]
[401595490,1768311975565,500.0,0.00030136,120]
[401595492,1768312009542,500.0,0.00030136,120]
[401595493,1768312009892,500.0,0.00030136,120]
[401595494,1768312010025,500.0,0.00030136,120]
[401595495,1768312010285,500.0,0.00030136,120]
[401595496,1768312010534,500.0,0.00030136,120]
[401595497,1768312010779,500.0,0.00030136,120]
[401595498,1768312011004,500.0,0.00030136,120]
[401595499,1768312011240,500.0,0.00030136,120]
[401595500,1768312011620,500.0,0.00030136,120]
[401595501,1768312011717,500.0,0.00030136,120]
[401595502,1768312011962,500.0,0.00030136,120]
[401595503,1768312012230,500.0,0.00030136,120]
[401595504,1768312012479,500.0,0.00030136,120]
[401595505,1768312012718,269.75330622,0.00030136,120]
[401595509,1768312017940,174.0025672,7.886e-05,2]
[401595510,1768312035103,308.40609686,0.00030136,120]
[401595511,1768312051644,400.0,0.00030137,120]
[401595512,1768312078478,581.91203912,0.00030136,120]
[401595514,1768312084522,1000.0,0.000157,2]
[401595515,1768312123231,169.07956,0.00015068,2]
[401595516,1768312125481,224.2892864,0.00030136,120]
[401595520,1768312203771,505.23,5e-05,2]
[401595521,1768312204200,505.23,5.2e-05,2]
[401595522,1768312204670,505.23,5.3e-05,2]
[401595524,1768312205135,505.23,5.5e-05,2]
[401595525,1768312205551,505.23,5.7e-05,2]
[401595526,1768312206016,505.23,5.9e-05,2]
[401595527,1768312206522,505.23,6e-05,2]
[401595528,1768312206930,505.23,6.2e-05,2]
[401595529,1768312207427,505.23,6.4e-05,2]
[401595530,1768312207918,505.23,6.5e-05,2]
[401595531,1768312208386,505.23,6.7e-05,2]
[401595532,1768312208911,505.23,6.9e-05,2]
[401595533,1768312209479,505.23,7.1e-05,2]
[401595534,1768312209947,505.23,7.2e-05,2]
[401595535,1768312210377,505.23,7.4e-05,2]
[401595536,1768312210805,505.23,7.6e-05,2]
[401595537,1768312211240,505.23,7.7e-05,2]
[401595538,1768312211659,242.02044,7.9e-05,2]
[401595539,1768312211684,263.20956,7.9e-05,2]
[401595540,1768312212096,505.23,8.1e-05,2]
[401595541,1768312212591,505.23,8.3e-05,2]
[401595542,1768312216984,505.23,8.4e-05,2]
[401595543,1768312217922,505.23,8.6e-05,2]
[401595544,1768312218364,505.23,8.8e-05,2]
[401595545,1768312218834,505.23,8.9e-05,2]
[401595546,1768312219254,505.23,9.1e-05,2]
[401595547,1768312219694,505.23,9.3e-05,2]
[401595548,1768312220104,505.23,9.5e-05,2]
[401595549,1768312220577,505.23,9.6e-05,2]
[401595550,1768312221046,505.23,9.8e-05,2]
[401595551,1768312221627,505.23,0.0001,2]
[401595552,1768312222046,505.23,0.000101,2]
[401595553,1768312222556,505.23,0.000103,2]
[401595554,1768312222871,505.23,0.000105,2]
[401595555,1768312223288,505.23,0.000107,2]
[401595556,1768312223705,505.23,0.000108,2]
[401595557,1768312224284,505.23,0.00011,2]
[401595558,1768312224608,505.23,0.000112,2]
[401595559,1768312225106,137.43044,0.000113,2]
[401595560,1768312225135,367.79956,0.000113,2]
[401595561,1768312225437,505.23,0.000115,2]
[401595562,1768312225912,505.23,0.000117,2]
[401595563,1768312226352,505.23,0.000119,2]
[401595564,1768312226815,505.23,0.00012,2]
[401595565,1768312227268,505.23,0.000122,2]
[401595566,1768312227750,505.23,0.000124,2]
[401595567,1768312228173,505.23,0.000125,2]
[401595568,1768312228601,505.23,0.000127,2]
[401595569,1768312229244,505.23,0.000129,2]
[401595570,1768312230124,505.23,0.000131,2]
[401595571,1768312230466,505.23,0.000132,2]
[401595572,1768312230966,505.23,0.000134,2]
[401595599,1768312232431,-300.23,0.00015772,2]
[401595601,1768312235867,154.24,0.00012177,2]
[401595602,1768312236272,176.28,0.00012893,2]
[401595603,1768312236724,198.31,0.0001361,2]
[401595604,1768312237184,220.35,0.00014326,2]
[401595609,1768312238471,-347.77,0.00015772,2]
[401595610,1768312238481,-274.32436267,0.00015772,2]
[401595611,1768312238491,-2706.1896675,0.00015772,2]
[401595612,1768312238501,-1529.13544119,0.000158,2]
[401595613,1768312238510,-781.0,0.00015824,3]
[401595614,1768312238520,-500.0,0.00015833,2]
[401595615,1768312238530,-500.0,0.00015833,2]
[401595616,1768312238539,-283.65019243,0.00015833,2]
[401595618,1768312238549,-500.0,0.00015833,2]
[401595619,1768312238558,-500.0,0.00015833,2]
[401595621,1768312238568,-500.0,0.00015833,2]
[401595622,1768312238577,-500.0,0.00015833,2]
[401595623,1768312238587,-500.0,0.00015833,2]
[401595624,1768312238597,-500.0,0.00015833,2]
[401595625,1768312238608,-356.10363376,0.00015833,2]
[401595626,1768312238617,-500.0,0.00015833,2]
[401595627,1768312238627,-500.0,0.00015833,2]
[401595628,1768312238637,-500.0,0.00015833,2]
[401595629,1768312238647,-500.0,0.00015833,2]
[401595630,1768312238656,-500.0,0.00015833,2]
[401595631,1768312238666,-500.0,0.00015833,2]
[401595632,1768312238675,-500.0,0.00015833,2]
[401595633,1768312238685,-500.0,0.00015833,2]
[401595634,1768312238694,-500.0,0.00015833,2]
[401595635,1768312238704,-244.47427063,0.00015833,2]
[401595636,1768312238713,-500.0,0.00015833,2]
[401595637,1768312238723,-399.10123447,0.00015833,2]
[401595638,1768312238732,-406.87672061,0.00015833,2]
[401595639,1768312238741,-300.0,0.00015833,2]
[401595640,1768312238752,-743431.91631813,0.00015834,2]